fUSD/lending_fUSD_20250115
["ID","MTS","AMOUNT","RATE_DAILY","PERIOD"]
[348968420,1736902254379,-500.0,0.00013012,2]
[348968421,1736902254388,-500.0,0.00013013,2]
[348968422,1736902254397,-500.0,0.00013013,2]
[348968423,1736902254406,-610.64322271,0.00013013,2]
[348968424,1736902254416,-500.0,0.00013013,2]
[348968425,1736902254425,-500.0,0.00013013,2]
[348968426,1736902254435,-500.0,0.00013013,2]
[348968427,1736902254444,-500.0,0.00013013,2]
[348968428,1736902254453,-500.0,0.00013013,2]
[348968429,1736902254464,-500.0,0.00013013,2]
[348968430,1736902254474,-500.0,0.00013013,2]
[348968431,1736902254483,-500.0,0.00013065,2]
[348968432,1736902254492,-500.0,0.00013065,2]
[348968433,1736902254501,-690.28,0.00013065,2]
[348968434,1736902254511,-1042.68,0.00013065,2]
[348968435,1736902254520,-702.21,0.00013065,2]
[348968436,1736902254530,-542.6,0.00013065,2]
[348968437,1736902254539,-440.87787,0.00013065,2]
[348968438,1736902254552,-1935.69,0.00013065,2]
[348968439,1736902254612,-377.528336,0.00013065,2]
[348968440,1736902254622,-561.38,0.00013065,2]
[348968441,1736902254633,-500.0,0.00013065,2]
[348968442,1736902254643,-1877.16,0.00013065,2]
[348968443,1736902254652,-790.45,0.00013065,2]
[348968444,1736902254661,-500.0,0.00013065,2]
[348968445,1736902254671,-500.0,0.00013065,2]
[348968446,1736902254681,-521.46,0.00013065,2]
[348968447,1736902254690,-835.12,0.00013065,2]
[348968448,1736902254699,-1090.69,0.00013065,2]
[348968449,1736902254708,-680.91,0.00013065,2]
[348968450,1736902254718,-1150.27,0.00013065,2]
[348968451,1736902254727,-643.4,0.00013065,2]
[348968452,1736902254736,-1831.33,0.00013065,2]
[348968453,1736902254746,-2114.55,0.00013065,2]
[348968454,1736902254756,-1143.31,0.00013065,2]
[348968455,1736902254767,-956.73,0.00013066,2]
[348968456,1736902254776,-1495.0,0.00013066,2]
[348968457,1736902254785,-879.17,0.00013066,2]
[348968458,1736902254795,-695.35,0.00013066,2]
[348968459,1736902254805,-500.0,0.00013067,2]
[348968460,1736902254815,-324.77,0.00013151,2]
[348968461,1736902254824,-500.0,0.00013171,2]
[348968462,1736902254834,-500.0,0.00013171,2]
[348968463,1736902254843,-500.0,0.00013171,2]
[348968464,1736902254853,-201.30737971,0.00013171,2]
[348968465,1736902254862,-500.0,0.00013171,2]
[348968466,1736902254873,-472.90870917,0.00013171,2]
[348968467,1736902254883,-500.0,0.00013171,2]
[348968468,1736902254892,-874.92,0.00013171,2]
[348968469,1736902254901,-623.25,0.00013171,2]
[348968470,1736902254911,-500.0,0.00013171,2]
[348968471,1736902254920,-515.49,0.00013171,2]
[348968472,1736902254929,-500.0,0.00013171,2]
[348968473,1736902254938,-818.93,0.00013171,2]
[348968474,1736902254948,-1198.71,0.00013171,2]
[348968475,1736902254957,-500.0,0.00013171,2]
[348968476,1736902254966,-637.85,0.00013171,2]
[348968477,1736902254975,-556.55,0.00013173,2]
[348968478,1736902254985,-1182.14,0.00013173,2]
[348968479,1736902254995,-1303.90513457,0.00013176,2]
[348968480,1736902255004,-500.0,0.00013189,2]
[348968481,1736902255015,-500.0,0.00013189,2]
[348968482,1736902255024,-500.0,0.00013189,2]
[348968483,1736902255034,-500.0,0.00013189,2]
[348968484,1736902255043,-500.0,0.00013189,2]
[348968485,1736902255052,-500.0,0.00013189,2]
[348968486,1736902255061,-500.0,0.00013189,2]
[348968487,1736902255071,-500.0,0.00013189,2]
[348968488,1736902255081,-500.0,0.00013189,2]
[348968489,1736902255092,-500.0,0.00013189,2]
[348968490,1736902255102,-500.0,0.00013189,2]
[348968491,1736902255111,-500.0,0.00013189,2]
[348968492,1736902255121,-500.0,0.00013189,2]
[348968493,1736902255131,-184.0371228,0.00013189,2]
[348968494,1736902255141,-500.0,0.00013189,2]
[348968495,1736902255151,-2164.87,0.00013189,2]
[348968496,1736902255160,-500.0,0.00013189,2]
[348968497,1736902255169,-1563.89,0.00013189,2]
[348968498,1736902255179,-500.0,0.00013189,2]
[348968499,1736902255189,-1807.58,0.00013189,2]
[348968500,1736902255199,-500.0,0.00013189,2]
[348968501,1736902255209,-500.0,0.00013189,2]
[348968502,1736902255218,-500.0,0.00013189,2]
[348968503,1736902255227,-500.0,0.00013189,2]
[348968504,1736902255237,-559.04,0.00013189,2]
[348968505,1736902255246,-151.0,0.0001319,2]
[348968506,1736902255256,-151.0,0.0001319,2]
[348968507,1736902255265,-1693.07,0.0001319,2]
[348968508,1736902255275,-658.3,0.0001319,2]
[348968509,1736902255285,-677.7,0.0001319,2]
[348968510,1736902255294,-759.32,0.0001319,2]
[348968511,1736902255304,-613.63,0.0001319,2]
[348968512,1736902255314,-500.0,0.0001319,2]
[348968513,1736902255324,-1044.08,0.0001319,2]
[348968514,1736902255333,-626.43,0.0001319,2]
[348968515,1736902255343,-500.0,0.0001319,2]
[348968516,1736902255353,-886.6,0.0001319,2]
[348968517,1736902255363,-539.23,0.0001319,2]
[348968518,1736902255372,-1673.77,0.0001319,2]
[348968519,1736902255382,-944.05,0.0001319,2]
[348968520,1736902255392,-675.08,0.0001319,2]
[348968521,1736902255401,-3490.19,0.0001319,2]
[348968522,1736902255410,-624.86,0.0001319,2]
[348968523,1736902255420,-814.1,0.0001319,2]
[348968524,1736902255430,-813.22,0.0001319,2]
[348968525,1736902255439,-791.95,0.00013191,2]
[348968526,1736902255449,-5556.0,0.000132,5]
[348968527,1736902255459,-2046.99,0.00013281,2]
[348968528,1736902255469,-951.72,0.00013286,2]
[348968529,1736902255478,-2890.2,0.00013286,2]
[348968530,1736902255488,-500.0,0.00013286,2]
[348968531,1736902255497,-500.0,0.00013286,2]
[348968532,1736902255508,-500.0,0.00013286,2]
[348968533,1736902255517,-899.21,0.00013286,2]
[348968534,1736902255526,-500.0,0.00013286,2]
[348968535,1736902255536,-2049.43,0.00013286,2]
[348968536,1736902255549,-570.3,0.00013286,2]
[348968537,1736902255558,-1049.34,0.00013286,2]
[348968538,1736902255568,-508.03,0.00013286,2]
[348968539,1736902255578,-500.0,0.00013286,2]
[348968540,1736902255589,-892.05,0.00013286,2]
[348968541,1736902255599,-931.61,0.00013286,2]
[348968542,1736902255609,-592.57,0.00013286,2]
[348968543,1736902255620,-500.0,0.00013286,2]
[348968544,1736902255630,-1565.46,0.00013286,2]
[348968545,1736902255640,-689.17,0.00013286,2]
[348968546,1736902255650,-500.0,0.00013286,2]
[348968547,1736902255659,-605.03,0.00013286,2]
[348968548,1736902255669,-556.38,0.00013286,2]
[348968549,1736902255678,-726.61,0.00013286,2]
[348968550,1736902255687,-884.02,0.00013286,2]
[348968551,1736902255698,-379.99703734,0.00013286,2]
[348968552,1736902255708,-500.0,0.00013286,2]
[348968553,1736902255718,-500.0,0.00013286,2]
[348968554,1736902255728,-500.0,0.00013286,2]
[348968555,1736902255736,-500.0,0.00013287,2]
[348968556,1736902255745,-500.0,0.00013287,2]
[348968557,1736902255755,-500.0,0.00013287,2]
[348968558,1736902255765,-500.0,0.00013287,2]
[348968559,1736902255775,-500.0,0.00013287,2]
[348968560,1736902255784,-500.0,0.00013287,2]
[348968561,1736902255794,-500.0,0.00013287,2]
[348968562,1736902255804,-500.0,0.00013287,2]
[348968563,1736902255814,-500.0,0.00013287,2]
[348968564,1736902255824,-500.0,0.00013339,2]
[348968565,1736902255833,-500.0,0.00013339,2]
[348968566,1736902255844,-690.28,0.00013339,2]
[348968567,1736902255853,-1042.68,0.00013339,2]
[348968568,1736902255864,-702.21,0.00013339,2]
[348968569,1736902255874,-542.6,0.00013339,2]
[348968570,1736902255884,-440.87787,0.00013339,2]
[348968571,1736902255894,-1935.69,0.00013339,2]
[348968572,1736902255904,-377.528336,0.00013339,2]
[348968573,1736902255913,-561.38,0.00013339,2]
[348968574,1736902255923,-500.0,0.00013339,2]
[348968575,1736902255933,-1877.16,0.00013339,2]
[348968576,1736902255943,-790.45,0.00013339,2]
[348968577,1736902255952,-500.0,0.00013339,2]
[348968578,1736902255961,-500.0,0.00013339,2]
[348968579,1736902255971,-521.46,0.00013339,2]
[348968580,1736902255981,-835.12,0.00013339,2]
[348968581,1736902255990,-1090.69,0.00013339,2]
[348968582,1736902256000,-680.91,0.00013339,2]
[348968583,1736902256009,-1150.27,0.00013339,2]
[348968584,1736902256019,-643.4,0.00013339,2]
[348968585,1736902256029,-1831.33,0.00013339,2]
[348968586,1736902256039,-2114.55,0.00013339,2]
[348968587,1736902256048,-1143.31,0.00013339,2]
[348968588,1736902256058,-956.73,0.0001334,2]
[348968589,1736902256068,-1495.0,0.0001334,2]
[348968590,1736902256077,-879.17,0.0001334,2]
[348968591,1736902256087,-695.35,0.0001334,2]
[348968592,1736902256096,-500.0,0.00013341,2]
[348968593,1736902256105,-10000.0,0.00013385,2]
[348968594,1736902256115,-540.77,0.00013445,2]
[348968595,1736902256124,-500.0,0.00013445,2]
[348968596,1736902256133,-500.0,0.00013445,2]
[348968597,1736902256142,-500.0,0.00013445,2]
[348968598,1736902256151,-500.0,0.00013445,2]
[348968599,1736902256160,-874.92,0.00013445,2]
[348968600,1736902256170,-623.25,0.00013445,2]
[348968601,1736902256179,-500.0,0.00013445,2]
[348968602,1736902256188,-515.49,0.00013445,2]
[348968603,1736902256199,-500.0,0.00013445,2]
[348968604,1736902256208,-818.93,0.00013445,2]
[348968605,1736902256218,-1198.71,0.00013445,2]
[348968606,1736902256227,-500.0,0.00013445,2]
[348968607,1736902256237,-637.85,0.00013445,2]
[348968608,1736902256246,-556.55,0.00013447,2]
[348968609,1736902256255,-1182.14,0.00013447,2]
[348968610,1736902256264,-500.0,0.00013463,2]
[348968611,1736902256274,-500.0,0.00013463,2]
[348968612,1736902256283,-500.0,0.00013463,2]
[348968613,1736902256294,-500.0,0.00013463,2]
[348968614,1736902256303,-500.0,0.00013463,2]
[348968615,1736902256313,-500.0,0.00013463,2]
[348968616,1736902256323,-500.0,0.00013463,2]
[348968617,1736902256332,-500.0,0.00013463,2]
[348968618,1736902256341,-500.0,0.00013463,2]
[348968619,1736902256352,-500.0,0.00013463,2]
[348968620,1736902256361,-500.0,0.00013463,2]
[348968621,1736902256371,-500.0,0.00013463,2]
[348968622,1736902256380,-500.0,0.00013463,2]
[348968623,1736902256389,-500.0,0.00013463,2]
[348968624,1736902256399,-2164.87,0.00013463,2]
[348968625,1736902256408,-500.0,0.00013463,2]
[348968626,1736902256418,-1563.89,0.00013463,2]
[348968627,1736902256426,-500.0,0.00013463,2]
[348968628,1736902256436,-1807.58,0.00013463,2]
[348968629,1736902256445,-500.0,0.00013463,2]
[348968630,1736902256455,-500.0,0.00013463,2]
[348968631,1736902256464,-500.0,0.00013463,2]
[348968632,1736902256474,-500.0,0.00013463,2]
[348968633,1736902256482,-559.04,0.00013463,2]
[348968634,1736902256491,-1693.07,0.00013464,2]
[348968635,1736902256501,-658.3,0.00013464,2]
[348968636,1736902256511,-677.7,0.00013464,2]
[348968637,1736902256520,-759.32,0.00013464,2]
[348968638,1736902256530,-613.63,0.00013464,2]
[348968639,1736902256539,-500.0,0.00013464,2]
[348968640,1736902256552,-1044.08,0.00013464,2]
[348968641,1736902256563,-626.43,0.00013464,2]
[348968642,1736902256573,-500.0,0.00013464,2]
[348968643,1736902256582,-886.6,0.00013464,2]
[348968644,1736902256594,-539.23,0.00013464,2]
[348968645,1736902256603,-1673.77,0.00013464,2]
[348968646,1736902256612,-944.05,0.00013464,2]
[348968647,1736902256622,-675.08,0.00013464,2]
[348968648,1736902256632,-3490.19,0.00013464,2]
[348968649,1736902256642,-814.1,0.00013464,2]
[348968650,1736902256652,-813.22,0.00013464,2]
[348968651,1736902256662,-791.95,0.00013465,2]
[348968652,1736902256672,-5000.0,0.00013468,3]
[348968653,1736902256683,-11000.00713082,0.000135,2]
[348968654,1736902256694,-5000.0,0.000135,3]
[348968655,1736902256704,-974.21753855,0.00013508,2]
[348968656,1736902256716,-2046.99,0.00013555,2]
[348968657,1736902256725,-1303.90513457,0.00013555,2]
[348968658,1736902256736,-951.72,0.0001356,2]
[348968659,1736902256746,-2890.2,0.0001356,2]
[348968660,1736902256755,-500.0,0.0001356,2]
[348968661,1736902256765,-500.0,0.0001356,2]
[348968662,1736902256775,-500.0,0.0001356,2]
[348968663,1736902256785,-899.21,0.0001356,2]
[348968664,1736902256795,-500.0,0.0001356,2]
[348968665,1736902256804,-2049.43,0.0001356,2]
[348968666,1736902256814,-570.3,0.0001356,2]
[348968667,1736902256824,-1049.34,0.0001356,2]
[348968668,1736902256833,-508.03,0.0001356,2]
[348968669,1736902256843,-500.0,0.0001356,2]
[348968670,1736902256853,-892.05,0.0001356,2]
[348968671,1736902256863,-931.61,0.0001356,2]
[348968672,1736902256874,-592.57,0.0001356,2]
[348968673,1736902256884,-500.0,0.0001356,2]
[348968674,1736902256894,-1565.46,0.0001356,2]
[348968675,1736902256904,-689.17,0.0001356,2]
[348968676,1736902256914,-500.0,0.0001356,2]
[348968677,1736902256924,-605.03,0.0001356,2]
[348968678,1736902256934,-556.38,0.0001356,2]
[348968679,1736902256944,-726.61,0.0001356,2]
[348968680,1736902256954,-884.02,0.0001356,2]
[348968681,1736902256963,-500.0,0.0001356,2]
[348968682,1736902256973,-500.0,0.0001356,2]
[348968683,1736902256983,-500.0,0.0001356,2]
[348968684,1736902256992,-500.0,0.00013561,2]
[348968685,1736902257002,-500.0,0.00013561,2]
[348968686,1736902257011,-500.0,0.00013561,2]
[348968687,1736902257021,-500.0,0.00013561,2]
[348968688,1736902257031,-500.0,0.00013561,2]
[348968689,1736902257041,-500.0,0.00013561,2]
[348968690,1736902257050,-500.0,0.00013561,2]
[348968691,1736902257060,-500.0,0.00013561,2]
[348968692,1736902257069,-500.0,0.00013561,2]
[348968693,1736902257079,-27430.130973,0.000136,2]
[348968694,1736902257089,-500.0,0.00013613,2]
[348968695,1736902257099,-500.0,0.00013613,2]
[348968696,1736902257115,-690.28,0.00013613,2]
[348968697,1736902257125,-1042.68,0.00013613,2]
[348968698,1736902257135,-702.21,0.00013613,2]
[348968699,1736902257145,-542.6,0.00013613,2]
[348968700,1736902257156,-440.87787,0.00013613,2]
[348968701,1736902257165,-1935.69,0.00013613,2]
[348968702,1736902257176,-377.528336,0.00013613,2]
[348968703,1736902257186,-252.059126,0.00013613,2]
[348968704,1736902257196,-252.059126,0.00013613,2]
[348968705,1736902257206,-561.38,0.00013613,2]
[348968706,1736902257216,-151.0,0.00013613,2]
[348968707,1736902257226,-571.020754,0.00013613,2]
[348968708,1736902257236,-165.76,0.00013613,2]
[348968709,1736902257246,-571.020754,0.00013613,2]
[348968710,1736902257257,-1877.16,0.00013613,2]
[348968711,1736902257267,-790.45,0.00013613,2]
[348968712,1736902257277,-386.28928801,0.00013613,2]
[348968713,1736902257286,-500.0,0.00013613,2]
[348968714,1736902257296,-521.46,0.00013613,2]
[348968715,1736902257305,-835.12,0.00013613,2]
[348968716,1736902257315,-1090.69,0.00013613,2]
[348968717,1736902257326,-680.91,0.00013613,2]
[348968718,1736902257336,-1150.27,0.00013613,2]
[348968719,1736902257346,-643.4,0.00013613,2]
[348968720,1736902257355,-1831.33,0.00013613,2]
[348968721,1736902257366,-2114.55,0.00013613,2]
[348968722,1736902257376,-1143.31,0.00013613,2]
[348968723,1736902257386,-151.0,0.00013614,2]
[348968724,1736902257396,-151.0,0.00013614,2]
[348968725,1736902257406,-151.0,0.00013614,2]
[348968726,1736902257415,-2586.472182,0.00013614,2]
[348968727,1736902257426,-2586.472182,0.00013614,2]
[348968728,1736902257436,-956.73,0.00013614,2]
[348968729,1736902257447,-1495.0,0.00013614,2]
[348968730,1736902257456,-879.17,0.00013614,2]
[348968731,1736902257466,-695.35,0.00013614,2]
[348968732,1736902257476,-500.0,0.00013615,2]
[348968733,1736902257486,-4676.6332621,0.00013689,2]
[348968734,1736902257497,-1664.0484025,0.00013689,2]
[348968735,1736902257507,-9573.7017723,0.00013689,2]
[348968736,1736902257516,-4191.1535767,0.00013689,2]
[348968737,1736902257526,-2091.5412586,0.00013689,2]
[348968738,1736902257536,-1016.90511496,0.00013698,2]
[348968739,1736902257547,-2934.06419191,0.00013698,2]
[348968740,1736902257559,-517.67242191,0.00013698,2]
[348968741,1736902257569,-3236.94,0.00013698,2]
[348968742,1736902257578,-3236.94,0.00013698,2]
[348968743,1736902257588,-3236.94,0.00013698,2]
[348968744,1736902257600,-3236.94,0.00013698,2]
[348968745,1736902257609,-3236.94,0.00013698,2]
[348968746,1736902257619,-3236.94,0.00013698,2]
[348968747,1736902257629,-3236.94,0.00013698,2]
[348968748,1736902257638,-3236.94,0.00013698,2]
[348968749,1736902257648,-3236.94,0.00013698,2]
[348968750,1736902257659,-3236.94,0.00013698,2]
[348968751,1736902257669,-3236.94,0.00013698,2]
[348968752,1736902257680,-3236.94,0.00013698,2]
[348968753,1736902257690,-3236.94,0.00013698,2]
[348968754,1736902257701,-3236.94,0.00013698,2]
[348968755,1736902257711,-500.0,0.00013698,2]
[348968756,1736902257720,-518.51610726,0.00013698,2]
[348968757,1736902257731,-332.54238763,0.00013698,2]
[348968758,1736902257740,-500.0,0.00013699,2]
[348968759,1736902257752,-500.0,0.00013699,2]
[348968760,1736902257762,-500.0,0.00013699,2]
[348968761,1736902257771,-500.0,0.00013699,2]
[348968762,1736902257780,-500.0,0.00013699,2]
[348968763,1736902257790,-500.0,0.00013699,2]
[348968764,1736902257800,-500.0,0.00013699,2]
[348968765,1736902257810,-500.0,0.00013699,2]
[348968766,1736902257821,-500.0,0.00013699,2]
[348968767,1736902257831,-500.0,0.00013699,2]
[348968768,1736902257840,-500.0,0.00013699,2]
[348968769,1736902257850,-500.0,0.00013699,2]
[348968770,1736902257859,-500.0,0.00013699,2]
[348968771,1736902257870,-500.0,0.00013699,2]
[348968772,1736902257880,-10001.15,0.00013699,2]
[348968773,1736902257891,-41915.54,0.00013699,2]
[348968774,1736902257904,-500.0,0.00013699,13]
[348968775,1736902257913,-500.0,0.00013699,13]
[348968776,1736902257924,-500.0,0.00013699,13]
[348968777,1736902257934,-34846.16,0.00013699,2]
[348968778,1736902257945,-500.0,0.00013699,13]
[348968779,1736902257955,-500.0,0.00013699,13]
[348968780,1736902257965,-500.0,0.00013699,13]
[348968781,1736902257975,-500.0,0.00013699,13]
[348968782,1736902257985,-500.0,0.00013699,13]
[348968783,1736902257994,-500.0,0.00013699,13]
[348968784,1736902258004,-500.0,0.00013699,13]
[348968785,1736902258013,-500.0,0.00013699,13]
[348968786,1736902258024,-500.0,0.00013699,13]
[348968787,1736902258034,-500.0,0.00013699,13]
[348968788,1736902258043,-500.0,0.00013699,13]
[348968789,1736902258053,-500.0,0.00013699,13]
[348968790,1736902258063,-500.0,0.00013699,13]
[348968791,1736902258075,-500.0,0.00013699,13]
[348968792,1736902258085,-500.0,0.00013699,13]
[348968793,1736902258095,-500.0,0.00013699,13]
[348968794,1736902258105,-500.0,0.00013699,13]
[348968795,1736902258115,-500.0,0.00013699,13]
[348968796,1736902258125,-200.0,0.00013699,2]
[348968797,1736902258134,-500.0,0.00013699,13]
[348968798,1736902258143,-500.0,0.00013699,13]
[348968799,1736902258153,-500.0,0.00013699,13]
[348968800,1736902258163,-500.0,0.00013699,13]
[348968801,1736902258173,-500.0,0.00013699,13]
[348968802,1736902258183,-500.0,0.00013699,13]
[348968803,1736902258193,-500.0,0.00013699,13]
[348968804,1736902258203,-500.0,0.00013699,13]
[348968805,1736902258213,-500.0,0.00013699,13]
[348968806,1736902258222,-500.0,0.00013699,13]
[348968807,1736902258232,-500.0,0.00013699,13]
[348968808,1736902258242,-500.0,0.00013699,13]
[348968809,1736902258252,-500.0,0.00013699,13]
[348968810,1736902258261,-500.0,0.00013699,13]
[348968811,1736902258271,-500.0,0.00013699,13]
[348968812,1736902258281,-500.0,0.00013699,13]
[348968813,1736902258290,-500.0,0.00013699,13]
[348968814,1736902258300,-500.0,0.00013699,13]
[348968815,1736902258310,-500.0,0.00013699,13]
[348968816,1736902258320,-500.0,0.00013699,13]
[348968817,1736902258330,-500.0,0.00013699,13]
[348968818,1736902258340,-500.0,0.00013699,2]
[348968819,1736902258349,-500.0,0.00013699,13]
[348968820,1736902258359,-500.0,0.00013699,13]
[348968821,1736902258369,-500.0,0.00013699,13]
[348968822,1736902258380,-500.0,0.00013699,13]
[348968823,1736902258390,-500.0,0.00013699,13]
[348968824,1736902258400,-500.0,0.00013699,13]
[348968825,1736902258410,-500.0,0.00013699,13]
[348968826,1736902258420,-500.0,0.00013699,13]
[348968827,1736902258430,-500.0,0.00013699,13]
[348968828,1736902258440,-500.0,0.00013699,13]
[348968829,1736902258450,-500.0,0.00013699,13]
[348968830,1736902258460,-500.0,0.00013699,13]
[348968831,1736902258470,-500.0,0.00013699,13]
[348968832,1736902258480,-500.0,0.00013699,13]
[348968833,1736902258489,-500.0,0.00013699,13]
[348968834,1736902258499,-500.0,0.00013699,13]
[348968835,1736902258508,-500.0,0.00013699,13]
[348968836,1736902258518,-500.0,0.00013699,13]
[348968837,1736902258528,-500.0,0.00013699,13]
[348968838,1736902258538,-500.0,0.00013699,13]
[348968839,1736902258550,-500.0,0.00013699,13]
[348968840,1736902258561,-500.0,0.00013699,13]
[348968841,1736902258573,-500.0,0.00013699,13]
[348968842,1736902258583,-500.0,0.00013699,13]
[348968843,1736902258594,-280.0,0.00013699,13]
[348968844,1736902258606,-3430.76,0.00013699,2]
[348968845,1736902258617,-151.0,0.00013699,2]
[348968846,1736902258629,-151.0,0.00013699,2]
[348968847,1736902258640,-151.0,0.00013699,2]
[348968848,1736902258650,-151.0,0.00013699,2]
[348968849,1736902258660,-444.641192,0.00013699,2]
[348968850,1736902258670,-444.641192,0.00013699,2]
[348968851,1736902258679,-151.0,0.00013699,2]
[348968852,1736902258689,-151.0,0.00013699,2]
[348968853,1736902258699,-220.925875,0.00013699,2]
[348968854,1736902258710,-220.925875,0.00013699,2]
[348968855,1736902258720,-210.081662,0.00013699,2]
[348968856,1736902258730,-210.081662,0.00013699,2]
[348968857,1736902258740,-500.0,0.00013699,2]
[348968858,1736902258751,-500.0,0.00013699,2]
[348968859,1736902258760,-500.0,0.00013699,2]
[348968860,1736902258771,-500.0,0.00013699,2]
[348968861,1736902258950,-550.26289874,0.00013699,2]
[348968862,1736902258960,-151.0,0.00013699,2]
[348968863,1736902258970,-151.0,0.00013699,2]
[348968864,1736902258980,-292.0,0.00013699,2]
[348968865,1736902258990,-292.0,0.00013699,2]
[348968866,1736902258999,-151.0,0.00013699,2]
[348968867,1736902259008,-426.889342,0.00013699,2]
[348968868,1736902259018,-426.889342,0.00013699,2]
[348968869,1736902259027,-645.781638,0.00013699,2]
[348968870,1736902259037,-165.876606,0.00013699,2]
[348968871,1736902259047,-645.781638,0.00013699,2]
[348968872,1736902259057,-165.876606,0.00013699,2]
[348968873,1736902259067,-170.667751,0.00013699,2]
[348968874,1736902259078,-170.667751,0.00013699,2]
[348968875,1736902259088,-10000.0,0.00013699,2]
[348968876,1736902259097,-3956.733399,0.00013699,2]
[348968877,1736902259108,-3956.733399,0.00013699,2]
[348968878,1736902259117,-772.647275,0.00013699,2]
[348968879,1736902259127,-200.4625,0.00013699,2]
[348968880,1736902259138,-772.647275,0.00013699,2]
[348968881,1736902259147,-200.4625,0.00013699,2]
[348968882,1736902259158,-330.245418,0.00013699,2]
[348968883,1736902259167,-330.245418,0.00013699,2]
[348968884,1736902259178,-151.0,0.00013699,2]
[348968885,1736902259188,-151.0,0.00013699,2]
[348968886,1736902259199,-214.222568,0.00013699,2]
[348968887,1736902259209,-151.0,0.00013699,2]
[348968888,1736902259218,-214.222568,0.00013699,2]
[348968889,1736902259228,-346.26725,0.00013699,2]
[348968890,1736902259239,-346.26725,0.00013699,2]
[348968891,1736902259250,-151.0,0.00013699,2]
[348968892,1736902259260,-887.584851,0.00013699,2]
[348968893,1736902259270,-611.752537,0.00013699,2]
[348968894,1736902259288,-965.34813,0.00013699,2]
[348968895,1736902259298,-887.584851,0.00013699,2]
[348968896,1736902259307,-611.752537,0.00013699,2]
[348968897,1736902259318,-965.34813,0.00013699,2]
[348968898,1736902259329,-151.0,0.00013699,2]
[348968899,1736902259339,-235.662241,0.00013699,2]
[348968900,1736902259349,-638.06888,0.00013699,2]
[348968901,1736902259359,-638.06888,0.00013699,2]
[348968902,1736902259369,-2023.14,0.000137,2]
[348968903,1736902259379,-2023.14,0.000137,2]
[348968904,1736902259388,-2023.14,0.000137,2]
[348968905,1736902259398,-500.0,0.00013719,2]
[348968906,1736902259408,-500.0,0.00013719,2]
[348968907,1736902259417,-500.0,0.00013719,2]
[348968908,1736902259427,-500.0,0.00013719,2]
[348968909,1736902259436,-874.92,0.00013719,2]
[348968910,1736902259446,-623.25,0.00013719,2]
[348968911,1736902259456,-500.0,0.00013719,2]
[348968912,1736902259466,-515.49,0.00013719,2]
[348968913,1736902259476,-500.0,0.00013719,2]
[348968914,1736902259486,-818.93,0.00013719,2]
[348968915,1736902259495,-1198.71,0.00013719,2]
[348968916,1736902259505,-500.0,0.00013719,2]
[348968917,1736902259515,-637.85,0.00013719,2]
[348968918,1736902259524,-150.0,0.0001372,2]
[348968919,1736902259534,-1960.37,0.0001372,2]